Cogmind - Beta 16 @@@ ROGUE MODE // 2026.02.05 @ 20:40:38 Player: luckinvolved Result: Self-destructed Performance ------------- Evolutions (6) 3000 Regions Visited (11) 2200 Robots Destroyed (18) 90 Value Destroyed (427) 427 Prototype IDs (6) 120 Alien Tech Used (0) 0 Bonus (348) 348 TOTAL SCORE: 6185 Bonus ------- Follower Combat Kills 48 Aligned with FarCom 300 Cogmind --------- Core Integrity 287/1150 Matter 113/300 Energy 6/100 System Corruption 6% Temperature Danger (415) Movement Core (200) Ox3 Location -4/Upper Caves Parts ------- > --- POWER (1) -------- Faulty Heavy Deuterium Engine > --- PROPULSION (8) --- Improved Gyrokinetic Inverter Improved Gyrokinetic Inverter > --- UTILITY (8) ------ (None) > --- WEAPON (2) ------- (None) > --- INVENTORY (5) ---- Advanced Myomer Leg Improved Terrain Scan Processor Reaction Control System Gauss Rifle Peak State ------------ > --- POWER ------------ Micro Nuclear Core > --- PROPULSION ------- Flight Unit Flying Fortress v7 > --- UTILITY ---------- Machine Analyzer Experimental Sensor Array Improved Signal Interpreter Advanced Terrain Scan Processor Improved Light Armor Plating Improved Light Armor Plating Improved Medium Armor Plating > --- WEAPON ----------- Improved Heavy Machine Gun Axe > --- INVENTORY -------- Heavy Deuterium Engine Improved Terrain Scan Processor Gauss Rifle Axe [Rating: 76] Favorites ----------- Power Micro Nuclear Core Engine Light Ion Engine Power Core Micro Nuclear Core Propulsion Flight Unit Leg Advanced Myomer Leg Hover Unit Improved Gyrokinetic Inverter Flight Unit Flight Unit Utility Improved Light Armor Plating Device Experimental Sensor Array Processor Advanced Terrain Scan Processor Protection Improved Light Armor Plating Weapon Axe Ballistic Gun Improved Heavy Machine Gun Launcher Grenade Launcher Impact Weapon Hammer Slashing Weapon Axe Build | -11 -10 -10 -10 -9 -8 -7 -6 -5 -5 -4 -4 ------- Run | Yrd Mat Min Exi Min Mat Fac Fac Fac Ext Fac Upp Slots Evolved 12 | . . . . . 4 2 2 2 . 2 . Power . | . . . . . . . . . . . . Propulsion 6 | . . . . . 3 1 . 1 . 1 . Utility 6 | . . . . . 1 1 2 1 . 1 . Weapon . | . . . . . . . . . . . . Parts Attached 29 | . 3 2 1 . 4 7 1 3 . 7 1 Power 3 | . . . . . 1 1 . . . . 1 Engine 2 | . . . . . 1 . . . . . 1 Core 1 | . . . . . . 1 . . . . . Reactor . | . . . . . . . . . . . . Propulsion 11 | . 2 1 1 . 1 1 . . . 5 . Treads . | . . . . . . . . . . . . Leg 1 | . . . . . . . . . . 1 . Wheel . | . . . . . . . . . . . . Hover 2 | . . . . . . . . . . 2 . Flight 8 | . 2 1 1 . 1 1 . . . 2 . Utility 7 | . . 1 . . 2 1 1 2 . . . Device 1 | . . 1 . . . . . . . . . Storage . | . . . . . . . . . . . . Processor 3 | . . . . . . 1 1 1 . . . Hackware . | . . . . . . . . . . . . Protection 3 | . . . . . 2 . . 1 . . . Artifact . | . . . . . . . . . . . . Weapon 8 | . 1 . . . . 4 . 1 . 2 . Energy Gun . | . . . . . . . . . . . . Energy Cannon . | . . . . . . . . . . . . Ballistic Gun 2 | . . . . . . 1 . 1 . . . Ballistic Cannon . | . . . . . . . . . . . . Launcher 2 | . 1 . . . . . . . . 1 . Special Weapon . | . . . . . . . . . . . . Impact Weapon 2 | . . . . . . 2 . . . . . Slashing Weapon 2 | . . . . . . 1 . . . 1 . Piercing Weapon . | . . . . . . . . . . . . Special Melee Weapon . | . . . . . . . . . . . . Unidentified Prototypes 6 | . . 1 . . 1 1 . 1 . 1 1 Parts Lost 12 | . . 4 . . . 1 . . 3 4 . Power 1 | . . . . . . 1 . . . . . Propulsion 7 | . . 3 . . . . . . 2 2 . Utility 1 | . . . . . . . . . 1 . . Weapon 3 | . . 1 . . . . . . . 2 . Highest Loss Streak 4 | . . 4 . . . 1 . . 3 4 . To Critical Strikes 1 | . . . . . . . . . 1 . . Average Backups 3 | . 5 4 2 2 . 3 5 4 4 4 4 Power . | . 1 1 1 1 . . 1 1 1 1 1 Propulsion . | . 3 3 1 1 . . . . . . . Utility 1 | . . . . . . 2 3 1 1 1 2 Weapon . | . 1 . . . . . 1 1 2 1 1 Tool/Special . | . . . . . . . . . . . . Unused Backups 3 | . . . . . . 1 . . . . 2 Power . | . . . . . . . . . . . . Propulsion . | . . . . . . . . . . . . Utility 2 | . . . . . . . . . . . 2 Weapon 1 | . . . . . . 1 . . . . . Tool/Special . | . . . . . . . . . . . . Average Slot Usage (%) 39 | . 14 33 28 28 42 63 60 61 55 6 11 Core 1 | . . . . . . 2 6 5 4 . . Hover 1 | . . . . . . . . . . 3 10 Flight 10 | . 4 21 14 14 18 15 13 11 8 . . Device 5 | . . 4 14 14 9 7 6 5 4 . . Processor 4 | . . . . . . 6 6 14 13 . . Protection 6 | . . . . . 10 15 13 11 13 . . Ballistic Gun 2 | . . . . . . 6 6 5 4 . . Launcher 1 | . 9 8 . . . . . . . . . Slashing Weapon 1 | . . . . . . . 6 5 4 1 . Peak Build Rating 76 | . 3 11 13 13 49 64 67 76 76 25 23 Average Rating 34 | . 1 5 11 13 47 59 64 70 56 8 17 On Entrance 27 | 6 . 3 9 13 13 49 64 67 76 1 23 Avg Prop Armor Cover (%) 14 | . . . . . . . . . . 13 21 Naked Turns 160 | . 13 . . . . . . . 49 98 . Heaviest Build 27 | . 3 3 1 1 10 20 20 27 27 14 . Greatest Support 54 | 3 8 8 4 4 54 54 54 54 54 30 24 Greatest Overweight (x) 4 | . . . . . . . . . . 4 . Average Overweight (x) . | . . . . . . . . . . . . Largest Inventory Capacity 5 | . 5 5 5 5 5 5 5 5 5 5 5 Average Capacity 5 | . 5 5 5 5 5 5 5 5 5 5 5 Most Carried 5 | . 5 5 5 5 1 5 5 5 4 5 5 Average Carried 4 | . 5 4 3 5 . 3 4 4 4 4 4 Final Capacity 5 | 5 5 5 5 5 5 5 5 5 5 5 5 Final Carried 5 | 5 5 4 5 5 . 5 4 4 4 4 4 Class Distribution -------------------- 45% | Mutant 44% | Scout Dominant Class ---------------- Mutant | -10/Materials Mutant | -10/Mines Mutant | -10/Exiles Scout | -9/Mines Scout | -8/Materials Scout | -7/Factory Scout | -6/Factory Scout | -5/Factory Scout | -5/Extension Mutant | -4/Factory Mutant | -4/Upper Caves Resources | -11 -10 -10 -10 -9 -8 -7 -6 -5 -5 -4 -4 ----------- Run | Yrd Mat Min Exi Min Mat Fac Fac Fac Ext Fac Upp Matter Collected 432 | 200 . 70 . . . . . . 139 23 . Remotely . | . . . . . . . . . . . . Salvage Created 332 | . 21 21 . . . . . . 81 209 . Parts 22 | . 4 4 . . . . . . 2 12 . Haulers Intercepted 1 | . . . . . . . . . . 1 . Recyclers Shooed 1 | . . . . . . . . . . 1 . Parts Field Recycled . | . . . . . . . . . . . . Retrieved Matter . | . . . . . . . . . . . . Parts Self-Destructed . | . . . . . . . . . . . . Prevented . | . . . . . . . . . . . . Parts Restored . | . . . . . . . . . . . . Kills | -11 -10 -10 -10 -9 -8 -7 -6 -5 -5 -4 -4 ------- Run | Yrd Mat Min Exi Min Mat Fac Fac Fac Ext Fac Upp Combat Hostiles Destroyed 12 | . 3 3 . . . . . . 1 5 . Melee 1 | . . . . . . . . . 1 . . AOE 11 | . 3 3 . . . . . . . 5 . Classes Destroyed 6 | . 1 . . . . . . . 1 4 . Worker 3 | . . . . . . . . . . 3 . Builder 2 | . . . . . . . . . . 2 . Hauler 1 | . . . . . . . . . . 1 . Swarmer 10 | . 3 3 . . . . . . . 4 . Grunt 1 | . . . . . . . . . . 1 . Sentry 1 | . . . . . . . . . 1 . . Best Kill Streak 10 | . 3 3 . . . . . . 1 10 . Combat Bots Only 5 | . 3 3 . . . . . . 1 5 . Max Kills in Single Turn 6 | . 2 3 . . . . . . 1 6 . Gunslinging . | . . . . . . . . . . . . Exploded 4 | . 2 3 . . . . . . . 4 . Melee 1 | . . . . . . . . . 1 . . Uniques/NPCs Destroyed . | . . . . . . . . . . . . Combat | -11 -10 -10 -10 -9 -8 -7 -6 -5 -5 -4 -4 -------- Run | Yrd Mat Min Exi Min Mat Fac Fac Fac Ext Fac Upp Hostile Shots Fired 361 | . 3 47 . 1 . 73 . 31 83 95 28 Missed 170 | . 1 25 . . . 46 . 24 24 39 11 Hits 191 | . 2 22 . 1 . 27 . 7 59 56 17 Melee 1 | . . 1 . . . . . . . . . Projectile 190 | . 2 21 . 1 . 27 . 7 59 56 17 AOE 1 | . . 1 . . . . . . . . . Critical Strikes 11 | . . . . . . 1 . . 2 4 4 Damage Taken 3549 | . 17 293 . 16 . 498 . 134 1280 973 338 Core 1916 | . . 201 . 16 . 27 . 20 789 566 297 Absorbed by Shields . | . . . . . . . . . . . . Core Remaining (%) 71 | 100 . . . 13 100 96 100 . 19 . . Volleys Fired 8 | . 3 1 . . . . . . . 4 . Largest 1 | . 1 1 . . . . . . . 1 . Hottest 49 | . 30 30 . . . . . . . 49 . Shots Fired 8 | . 3 1 . . . . . . . 4 . Gun . | . . . . . . . . . . . . Cannon . | . . . . . . . . . . . . Launcher 8 | . 3 1 . . . . . . . 4 . Special . | . . . . . . . . . . . . Kinetic . | . . . . . . . . . . . . Thermal . | . . . . . . . . . . . . Explosive 8 | . 3 1 . . . . . . . 4 . Electromagnetic . | . . . . . . . . . . . . Robot Hit Streak 1 | . 1 . . . . . . . . 1 . Robot Miss Streak 2 | . 1 2 . . . . . . . . . Penetration Max . | . . . . . . . . . . . . Secondary Targets . | . . . . . . . . . . . . Shots Hit Robots 6 | . 1 . . . . . . . 3 2 . Core Hits 24 | . 4 3 . . . . . . 1 16 . Critical Kills . | . . . . . . . . . . . . Critical Parts Destroyed . | . . . . . . . . . . . . Critical Strikes . | . . . . . . . . . . . . Melee Attacks 13 | . . . . . . 2 . 2 3 6 . Impact 2 | . . . . . . 2 . . . . . Slashing 11 | . . . . . . . . 2 3 6 . Piercing . | . . . . . . . . . . . . Sneak Attacks 2 | . . . . . . . . . 1 1 . Combat Hostiles . | . . . . . . . . . . . . Follow-up Attacks . | . . . . . . . . . . . . Damage Inflicted 1913 | . 318 97 . . . . . . 125 1373 . Guns . | . . . . . . . . . . . . Cannons . | . . . . . . . . . . . . Explosions 1729 | . 318 97 . . . . . . . 1314 . Melee 182 | . . . . . . . . . 123 59 . Ramming 2 | . . . . . . . . . 2 . . Kinetic . | . . . . . . . . . . . . Thermal 508 | . . . . . . . . . . 508 . Explosive 1221 | . 318 97 . . . . . . . 806 . Electromagnetic . | . . . . . . . . . . . . Impact . | . . . . . . . . . . . . Slashing 182 | . . . . . . . . . 123 59 . Piercing . | . . . . . . . . . . . . Highest Corruption 6 | . . . . . . 4 . . . 1 6 Average Corruption 2 | . . . . . . 3 . . . 1 3 Corruption Purged . | . . . . . . . . . . . . Corruption Blocked . | . . . . . . . . . . . . Effects 10 | . . . . . . 6 . . . 3 1 Message Errors 2 | . . . . . . . . . . 1 1 Matter Fused 6 | . . . . . . 5 . . . 1 . Parts Rejected 1 | . . . . . . 1 . . . . . Alerts 1 | . . . . . . . . . . 1 . Overload Shots . | . . . . . . . . . . . . Overflow Damage 182 | . 25 . . . . . . . . 157 . Projectiles . | . . . . . . . . . . . . Explosions 153 | . 25 . . . . . . . . 128 . Melee 29 | . . . . . . . . . . 29 . Knockbacks . | . . . . . . . . . . . . Impact . | . . . . . . . . . . . . Kinetic . | . . . . . . . . . . . . Secondary . | . . . . . . . . . . . . Self-Inflicted Damage . | . . . . . . . . . . . . Shots . | . . . . . . . . . . . . Rammed 2 | . . . . . . . . . 2 . . Targets Rammed 2 | . . . . . . . . . 2 . . Kicked . | . . . . . . . . . . . . Crushed . | . . . . . . . . . . . . Highest Temperature 415 | . 5 5 . . . 7 . . 301 8 415 Average Temperature 131 | . 5 4 . . . 6 . . 181 5 415 Received Heat Transfer 787 | . . 86 . 9 . 51 . 36 439 166 . Siege Activations . | . . . . . . . . . . . . Martial Activations . | . . . . . . . . . . . . Shielding Activations . | . . . . . . . . . . . . Robots Disrupted . | . . . . . . . . . . . . Combat Hostiles . | . . . . . . . . . . . . Robots Corrupted . | . . . . . . . . . . . . Combat Hostiles . | . . . . . . . . . . . . Parts Fried . | . . . . . . . . . . . . Impact Corruptions . | . . . . . . . . . . . . Robots Melted . | . . . . . . . . . . . . Combat Hostiles . | . . . . . . . . . . . . Parts Melted . | . . . . . . . . . . . . Heat Transferred 400 | . . . . . . . . . . 400 . Parts Sabotaged . | . . . . . . . . . . . . Parts Stolen . | . . . . . . . . . . . . Parts Stripped . | . . . . . . . . . . . . Power Chain Reactions . | . . . . . . . . . . . . Alert | -11 -10 -10 -10 -9 -8 -7 -6 -5 -5 -4 -4 ------- Run | Yrd Mat Min Exi Min Mat Fac Fac Fac Ext Fac Upp Maximum Alert Level 1 | . . 1 . . . . . . . 1 . Low Security (%) 91 | . 100 69 . 100 100 100 100 100 100 81 . Level 1 8 | . . 30 . . . . . . . 18 . Level 2 . | . . . . . . . . . . . . Level 3 . | . . . . . . . . . . . . Level 4 . | . . . . . . . . . . . . Level 5 . | . . . . . . . . . . . . High Security . | . . . . . . . . . . . . Max Security . | . . . . . . . . . . . . Peak Influence 387 | . 103 268 . 15 14 82 44 23 50 387 . Initial 36 | . . 36 . . 5 . 30 16 2 . . Average 53 | . 39 169 . 2 5 34 32 7 16 76 . Influence Increases 1194 | . 103 352 . 15 9 147 14 44 78 432 . Destroy 0b10 Robot/C 340 | . 60 140 . . . . . . 40 100 . Destroy 0b10 Robot/NC 30 | . . . . . . . . . . 30 . Destroy Leader 52 | . 10 30 . . . . . . . 12 . Allied During Kill 21 | . . 11 . . . . . . 10 . . Successful Hack 104 | . . . . . 9 41 14 12 28 . . Disable Machine 150 | . 15 . . . . . . 15 . 120 . Destroy Structure 137 | . 18 6 . . . 1 . 2 . 110 . Lose Combat Pursuer 360 | . . 165 . 15 . 105 . 15 . 60 . Influence Decreases 1003 | . 10 257 188 . 24 85 42 73 83 95 146 Entered New Map 434 | . . 57 188 . 10 . 32 18 3 . 126 Time Decay 391 | . 10 80 . . 14 80 10 55 67 55 20 Lost Part 95 | . . 40 . . . 5 . . 10 40 . Lost Ally 83 | . . 80 . . . . . . 3 . . Squads Dispatched 14 | . 1 . . . 5 2 . 2 1 3 . Investigation 6 | . . . . . 1 1 . 2 1 1 . Extermination 1 | . . . . . . 1 . . . . . Reinforcement 4 | . 1 . . . 1 . . . . 2 . Assault 2 | . . . . . 2 . . . . . . Garrison 1 | . . . . . 1 . . . . . . Intercept . | . . . . . . . . . . . . Searches Triggered . | . . . . . . . . . . . . Construction Impeded . | . . . . . . . . . . . . Haulers Reinforced . | . . . . . . . . . . . . Active Scanning Responses . | . . . . . . . . . . . . Cargo Convoy Interrupts . | . . . . . . . . . . . . Stealth | -11 -10 -10 -10 -9 -8 -7 -6 -5 -5 -4 -4 --------- Run | Yrd Mat Min Exi Min Mat Fac Fac Fac Ext Fac Upp Distress Signals 8 | . . 2 . . 4 1 . . . 1 . Communications Jammed . | . . . . . . . . . . . . Distress Signals . | . . . . . . . . . . . . Times Spotted 111 | . 6 32 . 1 5 15 . 16 17 17 2 Peak Tracking Total 17 | . 4 17 . 2 5 9 . 16 13 10 2 Tactical Retreats 13 | . . 6 . 1 . 4 . 1 . 1 . Traps | -11 -10 -10 -10 -9 -8 -7 -6 -5 -5 -4 -4 ------- Run | Yrd Mat Min Exi Min Mat Fac Fac Fac Ext Fac Upp Traps Triggered 2 | . . . . . . 1 . . 1 . . Indirectly . | . . . . . . . . . . . . Trap Hack Attempts . | . . . . . . . . . . . . Triggered . | . . . . . . . . . . . . Disarmed . | . . . . . . . . . . . . Reprogrammed . | . . . . . . . . . . . . Reused . | . . . . . . . . . . . . Traps Extracted . | . . . . . . . . . . . . Installed . | . . . . . . . . . . . . Triggered . | . . . . . . . . . . . . Machines | -11 -10 -10 -10 -9 -8 -7 -6 -5 -5 -4 -4 ---------- Run | Yrd Mat Min Exi Min Mat Fac Fac Fac Ext Fac Upp Machines Disabled 10 | . 1 . . . . . . 1 . 8 . Max in Single Turn 6 | . 1 . . . . . . 1 . 6 . Garrison Access 1 | . . . . . 1 . . . . . . Machines Repaired . | . . . . . . . . . . . . Machines Dismantled . | . . . . . . . . . . . . Machines Sabotaged . | . . . . . . . . . . . . Overloaded Fab Kills . | . . . . . . . . . . . . Hacking | -11 -10 -10 -10 -9 -8 -7 -6 -5 -5 -4 -4 --------- Run | Yrd Mat Min Exi Min Mat Fac Fac Fac Ext Fac Upp Machines Accessed 16 | . . . . . 1 4 1 5 4 1 . Terminals 15 | . . . . . 1 4 1 5 4 . . Fabricators . | . . . . . . . . . . . . Repair Stations . | . . . . . . . . . . . . Recycling Units . | . . . . . . . . . . . . Scanalyzers . | . . . . . . . . . . . . Garrison Access 1 | . . . . . . . . . . 1 . Total Hacks 35 | . . . . . 4 9 2 11 7 2 . Successful 10 | . . . . . 1 2 1 2 4 . . Failed 25 | . . . . . 3 7 1 9 3 2 . Catastrophic 8 | . . . . . . 2 . 4 1 1 . Database Lockouts . | . . . . . . . . . . . . Manual 25 | . . . 1 . 4 7 2 11 . . . Terminals 33 | . . . . . 4 9 2 11 7 . . Fabricators . | . . . . . . . . . . . . Repair Stations . | . . . . . . . . . . . . Recycling Units . | . . . . . . . . . . . . Scanalyzers . | . . . . . . . . . . . . Garrison Access 2 | . . . . . . . . . . 2 . Terminal Hacks 6 | . . . . . 1 1 . . 4 . . Open Door 4 | . . . . . . . . . 4 . . Level Access Points 1 | . . . . . 1 . . . . . . Branch Access Points 1 | . . . . . . 1 . . . . . Fabricator Hacks . | . . . . . . . . . . . . Repair Station Hacks . | . . . . . . . . . . . . Recycling Unit Hacks . | . . . . . . . . . . . . Scanalyzer . | . . . . . . . . . . . . Garrison Access Hacks . | . . . . . . . . . . . . Unauthorized Hacks 4 | . . . . . . 1 1 2 . . . Terminals 4 | . . . . . . 1 1 2 . . . Botnet 4 | . . . . . . 1 1 2 . . . Fabricators . | . . . . . . . . . . . . Repair Stations . | . . . . . . . . . . . . Recycling Units . | . . . . . . . . . . . . Scanalyzers . | . . . . . . . . . . . . Garrison Access . | . . . . . . . . . . . . Data Cores Recovered . | . . . . . . . . . . . . Used . | . . . . . . . . . . . . Hacking Detections 14 | . . . . . 1 4 1 5 2 1 . Full Trace Events 6 | . . . . . 1 1 . 2 1 1 . Feedback Events 1 | . . . . . . . . . . 1 . Corruption 1 | . . . . . . . . . . 1 . Feedback Blocked . | . . . . . . . . . . . . Robot Schematics Acquired . | . . . . . . . . . . . . Robots Built . | . . . . . . . . . . . . Authchips . | . . . . . . . . . . . . Time . | . . . . . . . . . . . . Total Robot Build Rating . | . . . . . . . . . . . . Part Schematics Acquired . | . . . . . . . . . . . . Parts Built . | . . . . . . . . . . . . Authchips . | . . . . . . . . . . . . Time . | . . . . . . . . . . . . Total Part Build Rating . | . . . . . . . . . . . . Part Studies Acquired . | . . . . . . . . . . . . Parts Repaired . | . . . . . . . . . . . . Time . | . . . . . . . . . . . . Parts Recycled . | . . . . . . . . . . . . Recycled Matter . | . . . . . . . . . . . . Retrieved Matter . | . . . . . . . . . . . . Retrieved Components . | . . . . . . . . . . . . Parts Scanalyzed . | . . . . . . . . . . . . Part Schematics Acquired . | . . . . . . . . . . . . Parts Damaged . | . . . . . . . . . . . . Bothacking | -11 -10 -10 -10 -9 -8 -7 -6 -5 -5 -4 -4 ------------ Run | Yrd Mat Min Exi Min Mat Fac Fac Fac Ext Fac Upp Used RIF Installer . | . . . . . . . . . . . . Robots Hacked . | . . . . . . . . . . . . Non-combat . | . . . . . . . . . . . . Combat . | . . . . . . . . . . . . Robot Hacks Applied . | . . . . . . . . . . . . Relay Couplers Released 1 | . . . . . 1 . . . . . . Machine Destruction 1 | . . . . . 1 . . . . . . Fabnet Peak Effective % . | . . . . . . . . . . . . Robots Rewired 4 | . . . . . . . . . 4 . . Allies Hacked . | . . . . . . . . . . . . Hacks Repelled . | . . . . . . . . . . . . Allies | -11 -10 -10 -10 -9 -8 -7 -6 -5 -5 -4 -4 -------- Run | Yrd Mat Min Exi Min Mat Fac Fac Fac Ext Fac Upp Total Allies 13 | . . 5 . . . . . . 8 . . Largest Group 7 | . . 5 . . . . . . 7 . . Highest-Rated Group 175 | . . 81 . . . . . . 175 . . Highest-Rated Ally 39 | . . 31 . . . . . . 39 . . Total Orders . | . . . . . . . . . . . . Ally Attacks 25 | . . 21 . . . . . . 4 . . Total Damage 379 | . . 265 . . . . . . 114 . . Kills 6 | . . 5 . . . . . . 1 . . Allies Corrupted . | . . . . . . . . . . . . Allies Melted . | . . . . . . . . . . . . Intel | -11 -10 -10 -10 -9 -8 -7 -6 -5 -5 -4 -4 ------- Run | Yrd Mat Min Exi Min Mat Fac Fac Fac Ext Fac Upp Active Infowar (turns) 847 | . . 63 85 74 59 248 33 141 144 . . Sensors 847 | . . 63 85 74 59 248 33 141 144 . . Machine Analysis 221 | . . . . . . . . 77 144 . . Robot Analysis Total . | . . . . . . . . . . . . Derelict Logs Recovered 3 | . . 1 . 1 . . . . . . 1 Drone Launches . | . . . . . . . . . . . . Drone Recoveries . | . . . . . . . . . . . . Exploration | -11 -10 -10 -10 -9 -8 -7 -6 -5 -5 -4 -4 ------------- Run | Yrd Mat Min Exi Min Mat Fac Fac Fac Ext Fac Upp Turns Passed 1354 | . 56 179 85 74 59 248 33 141 193 234 52 Spaces Moved 2669 | 1 99 434 205 185 128 529 75 312 296 337 68 Core 440 | 1 66 63 . . . . . . 94 216 . Treads . | . . . . . . . . . . . . Legs 3 | . . . . . . . . . . 3 . Wheels . | . . . . . . . . . . . . Hover 181 | . . . . . . . . . . 113 68 Flight 2045 | . 33 371 205 185 128 529 75 312 202 5 . Fastest Speed 37 | 50 37 37 40 40 42 42 42 42 42 42 66 Average Speed 44 | 50 45 39 40 40 42 42 42 42 44 58 68 Slowest Speed 250 | 50 50 50 40 40 42 42 42 42 50 250 76 Overloaded Moves . | . . . . . . . . . . . . Propulsion Burnouts . | . . . . . . . . . . . . Robots Hopped 39 | . . 11 . . . 10 . 9 9 . . Potential Cave-ins . | . . . . . . . . . . . . Cave-ins Triggered . | . . . . . . . . . . . . Exploration Rate (%) 30 | 2 23 83 61 55 17 23 3 12 53 10 22 Regions Visited 11 Branch Regions 5 Pre-discovered Areas 1 | . . . . . . . . . . . 1 Known Exits Taken 3 | . . . . . 1 . 1 1 . . . Unknown Exits Taken 8 | 1 1 1 1 1 . 1 . . 1 1 . Scrap Searched 1 | . . 1 . . . . . . . . . Spaces Dug 6 | . . . . . . 1 . 1 . 4 . Terrain Destroyed 86 | . 18 6 . . . 1 . 1 . 60 . Melee 6 | . . . . . . 1 . 1 . 4 . Projectile . | . . . . . . . . . . . . AOE 80 | . 18 6 . . . . . . . 56 . Terrain Rammed . | . . . . . . . . . . . . Walls Destroyed . | . . . . . . . . . . . . Machines Disabled . | . . . . . . . . . . . . Actions | -11 -10 -10 -10 -9 -8 -7 -6 -5 -5 -4 -4 --------- Run | Yrd Mat Min Exi Min Mat Fac Fac Fac Ext Fac Upp Total 2749 | . 104 429 208 184 131 539 75 308 341 356 74 Wait 4 | . . . . . . . . . . . 4 Move 2583 | . 98 412 204 184 127 509 74 293 278 336 68 Hop 36 | . . 10 . . . 9 . 9 8 . . Pick Up 11 | . . 2 1 . . 7 . . . 1 . Fast Attach 19 | . 3 1 . . 2 5 . 2 . 6 . Attach 10 | . . 1 1 . 2 1 1 1 . 2 1 Detach 4 | . . . . . . 1 . 1 . 1 1 Swap 2 | . . . . . . 2 . . . . . Drop 7 | . . 2 2 . . 3 . . . . . Fire 8 | . 3 1 . . . . . . . 4 . Melee 13 | . . . . . . 2 . 2 3 6 . Ram 2 | . . . . . . . . . 2 . . Kick . | . . . . . . . . . . . . Crush . | . . . . . . . . . . . . Escape Stasis . | . . . . . . . . . . . . Rewire 50 | . . . . . . . . . 50 . . Trap . | . . . . . . . . . . . . Miscellaneous . | . . . . . . . . . . . . Route ------- -11/Scrapyard -10/Materials -10/Mines (discovered 3 exits: [*Mat] / *Exi / [*Sub]) -10/Exiles -9/Mines -8/Materials (discovered 3 exits: *Fac x3) -7/Factory (discovered 3 exits: *Fac / *Low x2) -6/Factory -5/Factory -5/Extension (discovered 2 exits: *Fac / [*Cet]) -4/Factory -4/Upper Caves History --------- Turn | Location | Event 1 | -11/Scrapyard | Released all parts (6) 1 | -11/Scrapyard | Discovered new exit (range 0) 1 | -11/Scrapyard | Entered Materials 47 | -10/Materials | Discovered new exit (range 16) 57 | -10/Materials | Entered Mines 67 | -10/Mines | Assisted by bots powering up and referring to "LRC-V3" 67 | -10/Mines | Learned Materials machine intel 88 | -10/Mines | Assembled infested the area 93 | -10/Mines | Assisted by a Guerilla fighting off Assembled 149 | -10/Mines | Discovered new exit (range 6) 159 | -10/Mines | Core integrity fell below 50% 172 | -10/Mines | Found a damaged Exp. Sensor Array with a note attached 173 | -10/Mines | Found Prototype Device 173 | -10/Mines | Identified Exp. Sensor Array 180 | -10/Mines | Discovered new exit (range 13) 181 | -10/Mines | Lost 3 allies 207 | -10/Mines | Core integrity fell below 20% 233 | -10/Mines | Deemed a non-threat by the Exiles lab entrance 234 | -10/Mines | Discovered new exit (range 5) 235 | -10/Mines | Lost 4 parts (3n1w) 236 | -10/Mines | Entered Exiles 248 | -10/Exiles | Met 8R-AWN 254 | -10/Exiles | Met EX-HEX 266 | -10/Exiles | Met EX-BIN 270 | -10/Exiles | Aligned with FarCom system 271 | -10/Exiles | Given EX-Vault access code 280 | -10/Exiles | Opened EX-Vault 283 | -10/Exiles | Found Prototype Flight Unit 292 | -10/Exiles | Warned to stay clear of 0b10 Research branches 302 | -10/Exiles | Build established: Mutant 303 | -10/Exiles | Met EX-DEC 317 | -10/Exiles | Discovered new exit (range 14) 321 | -10/Exiles | Left Exiles lab with Flying Fortress v7 321 | -10/Exiles | Entered Mines 329 | -9/Mines | Received a Rocket Launcher from a helpful Derelict 334 | -9/Mines | Learned Materials stockpile data 345 | -9/Mines | A weapon hastily lodged in a ceiling crevice suddenly fell to the ground 351 | -9/Mines | Received a Mining Laser from a helpful Derelict 391 | -9/Mines | Discovered new exit (range 11) 395 | -9/Mines | Entered Materials 395 | -8/Materials | Evolved 4 slots: Propulsion x3, Utility x1 395 | -8/Materials | Identified Flying Fortress v7 397 | -8/Materials | Loaded intel: 61 machine locations 399 | -8/Materials | Identified exit to Factory 409 | -8/Materials | Garrison activated, responded to threat 430 | -8/Materials | Met 7R-MNS 454 | -8/Materials | Entered Factory 454 | -7/Factory | Evolved 2 slots: Propulsion x1, Utility x1 591 | -7/Factory | Identified exit to Lower Caves 631 | -7/Factory | Build established: Scout 697 | -7/Factory | Discovered new exit (range 10) 702 | -7/Factory | Entered another Factory area 702 | -6/Factory | Evolved 2 slots: Utility x2 729 | -6/Factory | Discovered new exit (range 11) 735 | -6/Factory | Identified exit to Factory 735 | -6/Factory | Entered another Factory area 735 | -5/Factory | Evolved 2 slots: Propulsion x1, Utility x1 870 | -5/Factory | Discovered new exit (range 16) 876 | -5/Factory | Identified exit to Extension 876 | -5/Factory | Entered Extension 893 | -5/Extension | Rescued a captive Derelict 894 | -5/Extension | Rescued a captive Derelict 907 | -5/Extension | Rescued a captive Derelict 909 | -5/Extension | Rescued a captive Derelict 1012 | -5/Extension | Rescued a captive Derelict 1012 | -5/Extension | Spotted B-75 Beast 1015 | -5/Extension | Spotted B-75 Beast 1020 | -5/Extension | Released all parts (9) 1032 | -5/Extension | Core integrity fell below 50% 1051 | -5/Extension | Lost 3 parts (2n1u) 1060 | -5/Extension | Discovered new exit (range 16) 1060 | -5/Extension | Discovered new exit (range 15) 1069 | -5/Extension | Core integrity fell below 20% 1069 | -5/Extension | Entered Factory 1069 | -4/Factory | Evolved 2 slots: Propulsion x1, Utility x1 1243 | -4/Factory | Spotted B-86 Titan 1293 | -4/Factory | Discovered new exit (range 14) 1303 | -4/Factory | Entered Upper Caves 1307 | -4/Upper Caves | Lost 4 parts (2n2w) 1321 | -4/Upper Caves | Core integrity fell below 50% 1331 | -4/Upper Caves | Learned location of Testing (-3) 1355 | -4/Upper Caves | Self-destructed Last Messages --------------- 01279_ The unstable cave ceiling collapses. 01279_ R-10 Processor collects Autogun. 01282_ Recycling Unit disabled. 01282_ Prototype Ballistic Gun tumbles out of recycling unit. 01283_ Acquired 3 matter. 01287_ O-16 Technician: "IFF HANDSHAKE FAILED. SECURING TERMINAL." 01289_ M-36 Artificer repairs S-27 Virus Autogun. 01291_ ALERT: Hostiles spotted, dispatching reinforcements to Terminal F005. 01293_ EXIT=FOUND 01299_ Penetrated by Slug. 01302_ K-01 Serf collects debris. 01303_ Slug penetrates Wall. LOCATION=UNKNOWN GOAL=ESCAPE 01331_ Acquired derelict log, extracted data. World map updated: -3/Testing. 01342_ Q6BPX2DIBJU&,EBCA1 4DP 01354_ Identified Hvy. Deuterium Engine. 01354_ Faulty integration triggers heat surge (+458). Map ----- +----------------------------------------------------+ | | | | | | | | | ?????????????????????????????????????????????????? | | ?????????????????????????????????????????????????? | | ?????????????????????????????????????????????????? | | ?????????????????????????????????????????????????? | | ?????????????????????????????????????????????????? | | ?????????????????????????????????????????????????? | | ?????????????????????????????????????????????????? | | ?????????????????????????????????????????????????? | | ?????????????????????????????????????????????????? | | ?????????????????????????????????????????????????? | | ?????????????????????????????????????????????????? | | ?????????????????????????????????????????????????? | | ?????????????????????????????????????????????????? | | ?????????????????????????????????????????????????? | | ??????????????????????????###???????######???????? | | ??????????????????????????# ######### #????#### | | ??????????????#???????????# ## #????## | | ?????????????# #######?## ###### | | ??????????????? ## | | ????????????????? p | | ??????????????????????# p # +# | | ??????????????????????# @ #" " | | ??????????????????????# #### ## #"" | | ???????????????????????????## ## ### # T | | ????????????????????????????##### ### # " | | ????????????????????????????????# ## # | | ???????????????????????????????? ## | | ???????????????????????????????# ### | | ???????????????????????????????## #?## #" | | ????????????????????????????????# ??# #" | | ????????????????????????????????## ##?# ###### | | ?????????????????????????????????## #??# ????? | | ???????????????????????????????????####?? ???? | | ????????????????????????????????????????? ???? | | ????????????????????????????????????????? ??? | | ????????????????????????????????????????? ?? | | ????????????????????????????????????????? ## ??? | | ??????????????????????????????????????????###????? | | ?????????????????????????????????????????????????? | | ?????????????????????????????????????????????????? | | ?????????????????????????????????????????????????? | | ?????????????????????????????????????????????????? | | ?????????????????????????????????????????????????? | | ?????????????????????????????????????????????????? | | ?????????????????????????????????????????????????? | | ?????????????????????????????????????????????????? | +----------------------------------------------------+ Best States ------------- Heat Dissipation 43 Energy Generation 15 Energy Capacity 150 Matter Stores 300 Matter Capacity 300 Sight Range 16 Robot Scan Range 20 Terrain Scan Density 210 Armor Coverage 525 Evasion (%) 62 Item Schematics ----------------- None Robot Schematics ------------------ None Fabricated ------------ Nothing Repaired ---------- Nothing Studied --------- None Alien Tech Used ----------------- None Achievements -------------- None Challenges ------------ None Game ------ Seed ChromionAblativeFlail Manual? 0 Play Time 00:19:54 Cumulative 187.8 hours Start 2026.02.05 @ 20:20:33 End 2026.02.05 @ 20:40:38 Sessions 1 Manual Loads 0 Difficulty Rogue Special Mode None Game No. 215 Rogue 210 Adventurer 5 Explorer 0 Win Type - Total 6 Types 5/0/0/1/0/0/0/0/0/0 Lore% 56 Gallery% 66 Achievement% 55 Wizard Run 0 Options --------- Layout 0 ASCII 0 Keyboard 1 Movement Vi Keybinds 0 Fullscreen 1 Font 24/Smallcaps Map View 76x50 Zoom Use 0% Tactical HUD 1 Map Filters NONE Filters NONE Steam 1 RUN: f72c0347-e268-479b-8ff3-a3fd84c238cd